bitfinex-derivatives/quotes_SOLF0:USTF0_20260202
["timestamp","ask_amount","ask_price","bid_price","bid_amount"]
[1770034716843,42.42606005,103.13,103.07,46.31435264]
[1770034718137,45.74088634,103.16,103.09,37.60114224]
[1770034719443,45.74088634,103.18,103.11,38.62359505]
[1770034719935,45.74088634,103.18,103.12,38.61229598]
[1770034720737,45.74088634,103.18,103.12,47.34909598]
[1770034720944,45.74088634,103.18,103.12,38.61229598]
[1770034721336,62.00087586,103.17,103.1,39.5144083]
[1770034721540,45.74088634,103.16,103.08,175.4701083]
[1770034721743,45.74088634,103.16,103.09,39.50325777]
[1770034723440,54.47448634,103.16,103.1,8.7385]
[1770034724747,45.74088634,103.16,103.11,8.7376]
[1770034724946,7.52738952,103.17,103.11,49.25256639]
[1770034725245,53.26827586,103.17,103.11,49.25256639]
[1770034725545,62.00087586,103.17,103.09,49.25356639]
[1770034725737,54.47348634,103.17,103.09,176.45856639]
[1770034726343,54.47348634,103.17,103.11,8.7376]
[1770034727848,45.74088634,103.17,103.12,8.7367]
[1770034728245,45.74088634,103.2,103.12,40.49490607]
[1770034728445,53.26827586,103.2,103.12,40.49490607]
[1770034729245,51.63633845,103.19,103.12,40.49490607]
[1770034729446,50.43282797,103.18,103.1,176.76299082]
[1770034730349,59.16462797,103.18,103.12,8.7368]
[1770034730546,59.16462797,103.18,103.09,135.9436]
[1770034730547,42.90543845,103.15,103.08,40.6754953]
[1770034730752,50.43282797,103.14,103.06,40.6754953]
[1770034731147,42.90543845,103.13,103.06,40.6754953]
[1770034731351,143.40948952,103.14,103.06,40.6754953]
[1770034731352,50.43282797,103.12,103.06,40.6754953]
[1770034731547,42.90543845,103.09,103.01,136.0426]
[1770034731750,50.43282797,103.07,103.0,40.66554036]
[1770034731947,50.43282797,103.07,102.98,176.75614036]
[1770034732145,7.52738952,103.05,102.98,40.66554036]
[1770034732346,42.90543845,103.04,102.96,40.66554036]
[1770034732557,42.90543845,103.04,102.97,40.66554036]
[1770034733547,7.52738952,103.05,102.98,39.98267445]
[1770034734148,42.90543845,103.09,103.02,176.01517445]
[1770034734354,42.90543845,103.09,103.02,39.98267445]
[1770034734849,178.82923845,103.11,103.02,39.98267445]
[1770034735053,42.90543845,103.1,103.02,39.98267445]
[1770034735250,7.52738952,103.09,103.02,39.98267445]
[1770034735451,42.90543845,103.08,103.0,49.03121876]
[1770034735648,42.90543845,103.08,103.0,40.28451876]
[1770034737760,42.90543845,103.08,103.01,41.00687629]
[1770034738354,42.90543845,103.08,103.02,40.99754956]
[1770034738758,42.90543845,103.1,103.02,40.99754956]
[1770034738960,42.90543845,103.1,103.03,185.97276352]
[1770034739461,42.90543845,103.1,103.03,49.94796352]
[1770034741655,42.90543845,103.1,103.03,41.20406352]
[1770034742364,42.90543845,103.1,103.03,49.94826352]
[1770034742663,50.43282797,103.1,103.03,49.94826352]
[1770034743954,42.90543845,103.09,103.01,50.17434924]
[1770034745367,51.64503845,103.09,103.01,50.17434924]
[1770034747164,59.17332797,103.08,103.01,8.7454]
[1770034747466,42.90543845,103.07,103.01,8.7454]
[1770034747764,42.90543845,103.07,102.99,49.50567181]
[1770034747962,143.49008952,103.08,102.99,49.50567181]
[1770034747963,46.09931593,103.05,102.99,49.50567181]
[1770034749969,54.84211593,103.05,102.99,40.75827181]
[1770034751872,54.84301593,103.04,102.97,49.32037847]
[1770034752062,62.37040545,103.04,102.97,49.32037847]
[1770034753870,54.84381593,103.03,102.97,40.57097847]
[1770034755268,54.84381593,103.03,102.95,395.9107]
[1770034755458,54.84381593,103.03,102.95,436.0291891]
[1770034755661,54.84381593,103.03,102.96,8.7503]
[1770034756668,54.84381593,103.03,102.97,48.86055829]
[1770034756669,46.09931593,103.03,102.97,48.86055829]
[1770034757065,46.09931593,103.03,102.97,40.11105829]
[1770034757370,54.84211593,103.05,102.98,39.984391]
[1770034757569,46.09931593,103.05,102.99,39.984391]
[1770034757761,53.62670545,103.09,103.01,39.97713917]
[1770034758370,46.09931593,103.09,103.03,39.97713917]
[1770034758670,46.09931593,103.12,103.05,40.38242617]
[1770034758869,46.09931593,103.12,103.05,49.12512617]
[1770034759072,46.09931593,103.12,103.05,40.38242617]
[1770034759266,46.09931593,103.12,103.03,40.38242617]
[1770034760268,8.7378,103.11,103.03,49.12622617]
[1770034760470,54.83711593,103.11,103.03,49.12622617]
[1770034761468,46.09931593,103.11,103.04,49.0270354]
[1770034761672,53.62670545,103.13,103.06,40.27678675]
[1770034761869,53.62670545,103.13,103.05,135.9983]
[1770034761870,46.09931593,103.13,103.07,49.01768675]
[1770034762069,46.09931593,103.13,103.05,40.27678675]
[1770034762772,46.09931593,103.12,103.05,8.742]
[1770034762972,53.62670545,103.11,103.03,40.3553795]
[1770034763674,8.7388,103.1,103.03,49.0990795]
[1770034763875,53.62670545,103.11,103.04,40.34858336]
[1770034764070,53.62670545,103.11,103.05,8.7427]
[1770034764266,46.09931593,103.11,103.05,8.7427]
[1770034765368,46.09931593,103.11,103.05,48.58655203]
[1770034766365,46.09931593,103.11,103.03,48.58114638]
[1770034766366,46.09931593,103.1,103.03,48.58114638]
[1770034767373,54.83781593,103.1,103.03,48.58114638]
[1770034767572,54.83781593,103.1,103.04,8.7435]
[1770034767776,46.09931593,103.1,103.04,8.7435]
[1770034770778,46.09931593,103.1,103.05,8.7427]
[1770034771984,46.09931593,103.1,103.03,48.58094638]
[1770034772176,54.83791593,103.1,103.03,48.58094638]
[1770034772977,54.83791593,103.1,103.03,8.7437]
[1770034773681,46.09931593,103.08,103.0,39.38053759]
[1770034773881,46.09931593,103.08,103.0,175.44463759]
[1770034775183,54.83951593,103.08,103.01,8.7453]
[1770034776287,54.84051593,103.07,103.01,8.7453]
[1770034776586,46.09931593,103.07,103.0,39.38053759]
[1770034777385,54.84041593,103.07,103.0,48.12723759]
[1770034778086,54.84041593,103.07,103.01,8.7461]
[1770034780483,61.63922276,103.09,103.02,47.56916958]
[1770034780788,45.3596606,103.09,103.02,38.82386958]
[1770034781285,45.3596606,103.09,103.03,47.51461837]
[1770034783089,45.3596606,103.08,103.02,8.7453]
[1770034784089,45.3596606,103.08,103.02,48.56945814]
[1770034784993,54.0999606,103.08,103.02,48.56945814]
[1770034786385,45.3596606,103.08,103.02,48.56945814]
[1770034786590,45.3596606,103.08,103.03,8.7444]
[1770034787292,45.3596606,103.1,103.04,40.07870862]
[1770034787986,45.3596606,103.1,103.04,48.82220862]
[1770034788183,45.3596606,103.1,103.02,136.0364]
[1770034788184,45.3596606,103.1,103.02,40.07362425]
[1770034789291,54.0982606,103.1,103.03,8.7444]
[1770034790993,54.0982606,103.1,103.04,8.7435]
[1770034792393,54.0982606,103.1,103.03,49.62487926]
[1770034794393,51.05145201,103.09,103.03,49.62487926]
[1770034795994,42.31185201,103.09,103.04,8.7435]
[1770034796394,42.31185201,103.09,103.03,40.88047926]
[1770034797294,42.31185201,103.09,103.05,8.7427]
[1770034798293,42.31185201,103.09,103.04,8.7433]
[1770034798490,51.05135201,103.09,103.03,40.88047926]
[1770034798790,42.31185201,103.09,103.01,39.81945147]
[1770034798985,42.31185201,103.07,103.01,39.81945147]
[1770034800288,51.05375201,103.06,103.01,39.81945147]
[1770034800794,51.05375201,103.06,102.99,47.14902501]
[1770034801291,42.31185201,103.05,102.98,372.19802997]
[1770034801496,49.85131417,103.05,102.98,372.19802997]
[1770034801991,42.31185201,103.05,102.98,410.59505307]
[1770034802397,42.31185201,103.05,103.0,8.747]
[1770034802691,42.31185201,103.05,102.98,410.59505307]
[1770034804397,42.31185201,103.05,102.99,8.7478]
[1770034804694,51.05285201,103.08,103.01,37.80341439]
[1770034805096,51.05295201,103.07,103.0,8.7463]
[1770034806091,51.05295201,103.07,103.01,8.7461]
[1770034807798,51.05295201,103.07,103.0,37.34602406]
[1770034808595,51.05295201,103.07,102.98,526.05876996]
[1770034808596,51.91741961,103.06,102.98,430.33190082]
[1770034809199,51.91741961,103.06,102.98,412.55606083]
[1770034809797,8.7428,103.05,102.98,421.30396083]
[1770034809997,53.12075745,103.05,102.98,412.55606083]
[1770034810401,44.37795745,103.05,102.99,40.48221251]
[1770034810894,44.37795745,103.05,103.01,8.746]
[1770034813098,44.37795745,103.05,103.0,8.7469]
[1770034813789,44.37795745,103.05,102.98,419.5708137]
[1770034814699,53.12075745,103.05,102.99,8.7478]
[1770034816601,44.37795745,103.05,103.0,8.747]
[1770034816902,44.37795745,103.05,102.99,38.97425065]
[1770034817300,44.37795745,103.05,103.01,8.7461]
[1770034821708,44.37795745,103.09,103.03,38.47690696]
[1770034822102,53.11565745,103.11,103.05,8.7426]
[1770034822505,44.37795745,103.11,103.05,38.47690696]
[1770034822706,47.39174637,103.11,103.05,38.47690696]
[1770034823406,47.39174637,103.11,103.06,8.7419]
[1770034824204,47.39174637,103.09,103.05,8.7427]
[1770034824404,44.37795745,103.09,103.05,8.7427]
[1770034824600,44.37795745,103.11,103.05,8.7427]
[1770034826611,53.11575745,103.11,103.05,8.7427]
[1770034829107,53.11575745,103.11,103.03,47.49063771]
[1770034829913,44.37795745,103.09,103.03,47.49063771]
[1770034831806,44.37795745,103.09,103.04,8.7434]
[1770034832006,44.37795745,103.09,103.03,38.74693771]
[1770034833415,44.37795745,103.09,103.05,8.7425]
[1770034838422,44.42799432,103.11,103.06,8.7418]
[1770034839725,53.16569432,103.11,103.05,50.30622661]
[1770034839923,53.16569432,103.11,103.05,8.7426]
[1770034840816,44.42799432,103.09,103.04,8.7435]
[1770034841718,44.42799432,103.12,103.07,8.7409]
[1770034841918,44.42799432,103.12,103.06,41.97784395]
[1770034842113,44.42799432,103.12,103.04,195.76238394]
[1770034842917,44.42799432,103.12,103.04,177.98654395]
[1770034843323,53.16489432,103.12,103.06,8.7418]
[1770034844721,44.42799432,103.1,103.05,8.7427]
[1770034844926,44.42799432,103.1,103.04,41.97784395]
[1770034845821,44.42799432,103.1,103.04,50.72104395]
[1770034846525,47.44202964,103.09,103.04,50.72104395]
[1770034850936,45.84719989,103.08,103.03,8.7443]
[1770034851630,45.84719989,103.08,103.03,52.59087949]
[1770034852836,42.83316457,103.1,103.04,43.90314209]
[1770034853029,45.84719989,103.1,103.04,43.90314209]
[1770034853230,3.01403532,103.09,103.04,43.90314209]
[1770034853430,45.84719989,103.1,103.04,43.90314209]
[1770034853736,54.58589989,103.1,103.04,43.90314209]
[1770034854533,42.83316457,103.09,103.04,43.90314209]
[1770034855433,42.83316457,103.09,103.04,52.64634209]
[1770034857335,42.83316457,103.09,103.05,8.7425]
[1770034857638,42.83316457,103.09,103.04,43.90314209]
[1770034858637,42.83316457,103.09,103.04,52.64594209]
[1770034860430,42.83316457,103.09,103.05,8.7427]
[1770034860938,42.83316457,103.11,103.05,43.7542822]
[1770034861132,42.83316457,103.11,103.06,43.7542822]
[1770034861838,45.84719989,103.1,103.04,61.5279701]
[1770034862530,45.84719989,103.1,103.05,8.7426]
[1770034864132,42.83316457,103.1,103.06,8.7418]
[1770034865238,45.84719989,103.1,103.06,8.7418]
[1770034865938,3.01403532,103.11,103.06,51.91983165]
[1770034866139,45.84719989,103.12,103.06,69.69567164]
[1770034866932,45.84719989,103.12,103.07,8.7409]
[1770034867631,45.84719989,103.12,103.07,52.49605114]
[1770034868233,42.83316457,103.12,103.07,70.27189113]
[1770034868435,45.84719989,103.12,103.07,52.49605114]
[1770034868941,44.55484724,103.14,103.08,42.77920811]
[1770034869834,44.55484724,103.13,103.08,42.77920811]
[1770034870238,44.55484724,103.13,103.09,8.7393]
[1770034870841,41.54081192,103.13,103.09,8.7393]
[1770034871640,44.55484724,103.13,103.09,8.7393]
[1770034872740,41.54081192,103.13,103.09,8.7393]
[1770034873138,44.55484724,103.13,103.08,51.51930811]
[1770034874345,44.55484724,103.13,103.09,8.7391]
[1770034876345,3.01403532,103.14,103.1,8.7384]
[1770034876543,44.55484724,103.15,103.1,8.7384]
[1770034876743,41.54081192,103.15,103.1,8.7384]
[1770034876939,44.55484724,103.15,103.1,8.7384]
[1770034877546,44.55484724,103.15,103.11,8.7377]
[1770034877742,3.01403532,103.14,103.11,8.7377]
[1770034877951,44.55484724,103.14,103.09,41.88642126]
[1770034879443,44.55484724,103.14,103.1,8.7384]
[1770034880743,41.54081192,103.14,103.1,8.7384]
[1770034880947,3.01403532,103.15,103.11,8.7377]
[1770034881141,44.55484724,103.15,103.11,8.7377]
[1770034881347,44.55484724,103.17,103.12,8.7364]
[1770034881645,44.55484724,103.16,103.09,178.73681379]
[1770034881838,3.01403532,103.15,103.1,42.79121379]
[1770034882244,41.54081192,103.13,103.08,42.79121379]
[1770034882444,44.55484724,103.13,103.08,42.79121379]
[1770034882649,41.54081192,103.13,103.08,42.79121379]
[1770034882848,41.54081192,103.13,103.1,8.7384]
[1770034883050,8.7336,103.16,103.1,8.7384]
[1770034883051,44.55484724,103.15,103.1,8.7384]
[1770034883548,44.55484724,103.14,103.1,8.7384]
[1770034884452,41.54081192,103.14,103.1,8.7384]
[1770034885347,41.54081192,103.14,103.11,8.7375]
[1770034885650,44.55484724,103.16,103.11,8.7375]
[1770034885950,44.55484724,103.15,103.11,8.7375]
[1770034887652,44.55484724,103.15,103.1,8.7384]
[1770034887850,44.55484724,103.14,103.1,8.7384]
[1770034888648,3.01403532,103.13,103.09,8.7393]
[1770034888862,44.55484724,103.13,103.09,8.7393]
[1770034889457,41.54081192,103.13,103.09,8.7393]
[1770034889752,41.54081192,103.15,103.1,8.7383]
[1770034890052,44.55484724,103.15,103.1,8.7383]
[1770034891154,41.54081192,103.15,103.11,8.7376]
[1770034892752,44.55484724,103.15,103.11,8.7376]
[1770034892959,41.54081192,103.15,103.11,8.7376]
[1770034896554,41.54081192,103.19,103.11,42.93758355]
[1770034896861,41.54081192,103.19,103.14,42.71635948]
[1770034897456,44.55484724,103.19,103.12,181.6356948]
[1770034897958,135.7625,103.23,103.12,42.71635948]
[1770034897959,44.05400642,103.17,103.12,42.71635948]
[1770034898460,47.06804174,103.17,103.12,42.71635948]
[1770034899454,3.01403532,103.16,103.1,178.02137819]
[1770034899656,47.06804174,103.16,103.1,42.08887819]
[1770034900153,44.05400642,103.16,103.12,8.7366]
[1770034902062,44.05400642,103.18,103.13,42.03549652]
[1770034902752,47.0632559,103.2,103.15,8.734]
[1770034903658,44.05400642,103.22,103.16,41.39786771]
[1770034903856,47.0632559,103.22,103.16,41.39786771]
[1770034904055,44.05400642,103.22,103.16,177.24896771]
[1770034904260,44.05400642,103.22,103.18,8.7317]
[1770034905462,47.0632559,103.23,103.18,8.7317]
[1770034905859,44.05400642,103.23,103.18,178.0671015]
[1770034906064,3.00924948,103.25,103.18,178.0671015]
[1770034906065,47.0632559,103.25,103.18,178.0671015]
[1770034906257,44.05400642,103.27,103.21,42.2408015]
[1770034906455,47.0632559,103.25,103.2,8.7293]
[1770034906661,44.05400642,103.25,103.2,8.7293]
[1770034907565,44.05400642,103.25,103.21,8.7291]
[1770034908359,43.41924424,103.27,103.22,8.728]
[1770034908763,46.42849372,103.29,103.22,181.65272513]
[1770034909270,43.41924424,103.29,103.24,42.87007565]
[1770034909463,43.41924424,103.31,103.24,45.87932513]
[1770034909767,46.42849372,103.31,103.25,42.87007565]
[1770034909968,46.42849372,103.29,103.23,42.87007565]
[1770034910272,43.41924424,103.29,103.23,45.87932513]
[1770034910469,43.41924424,103.29,103.24,8.7265]
[1770034910874,46.42849372,103.29,103.23,42.87007565]
[1770034911068,46.42849372,103.28,103.22,135.7734]
[1770034911268,46.42849372,103.28,103.22,178.64347565]
[1770034911468,46.42849372,103.28,103.23,8.7273]
[1770034911668,43.41924424,103.28,103.23,8.7273]
[1770034911971,46.42849372,103.28,103.23,8.7273]
[1770034912167,43.41924424,103.28,103.21,8.7285]
[1770034912372,46.42849372,103.26,103.2,42.87007565]
[1770034912773,46.42849372,103.26,103.21,8.7291]
[1770034912971,46.42849372,103.26,103.2,42.87007565]
[1770034913173,3.00924948,103.25,103.2,42.87007565]
[1770034915279,46.42849372,103.25,103.2,42.87007565]
[1770034915472,46.42849372,103.25,103.2,51.59997565]
[1770034915672,43.41924424,103.25,103.2,51.59997565]
[1770034916976,43.41924424,103.27,103.21,8.7291]
[1770034917173,3.00924948,103.26,103.21,8.7291]
[1770034917472,46.42849372,103.26,103.21,8.7291]
[1770034917680,46.42849372,103.25,103.19,41.47218737]
[1770034918579,46.42849372,103.23,103.17,41.47218737]
[1770034918776,3.00924948,103.21,103.15,177.49182781]
[1770034918977,46.42849372,103.21,103.15,177.49182781]
[1770034919179,46.42849372,103.21,103.16,8.7331]
[1770034919376,3.00924948,103.2,103.15,41.62602781]
[1770034919576,46.42849372,103.2,103.15,41.62602781]
[1770034920276,3.00924948,103.19,103.13,177.5118864]
[1770034921070,3.00924948,103.19,103.14,8.7349]
[1770034921276,46.42849372,103.16,103.1,135.923]
[1770034921483,135.7892,103.21,103.09,41.05777869]
[1770034921484,46.42849372,103.15,103.09,41.05777869]
[1770034921974,3.00924948,103.16,103.1,176.98656712]
[1770034922180,46.42849372,103.17,103.11,176.97596712]
[1770034922484,46.42849372,103.17,103.12,8.7367]
[1770034922679,46.42849372,103.16,103.09,176.55808701]
[1770034922879,46.42849372,103.15,103.09,176.55808701]
[1770034923180,3.00924948,103.14,103.09,49.35548701]
[1770034923682,46.42849372,103.15,103.09,40.61628701]
[1770034923983,43.41924424,103.15,103.09,40.61628701]
[1770034924185,46.42849372,103.15,103.09,40.61628701]
[1770034924383,43.41924424,103.15,103.1,8.7384]
[1770034925283,43.41924424,103.17,103.11,8.7374]
[1770034925484,43.41924424,103.17,103.11,41.21784754]
[1770034926977,43.41924424,103.17,103.09,42.87007565]
[1770034927178,50.94562321,103.17,103.07,178.83917565]
[1770034927483,50.94562321,103.17,103.08,178.82897565]
[1770034928086,50.94562321,103.17,103.1,8.7383]
[1770034928384,43.41924424,103.17,103.1,42.9818599]
[1770034929185,44.10795177,103.19,103.12,43.38137316]
[1770034929890,44.10795177,103.19,103.13,52.11623898]
[1770034930084,44.10795177,103.21,103.14,43.38043898]
[1770034930283,44.10795177,103.21,103.14,179.25983898]
[1770034930479,44.10795177,103.21,103.14,43.38043898]
[1770034932080,44.10795177,103.21,103.14,8.7349]
[1770034933482,44.10795177,103.19,103.12,8.736]
[1770034934282,52.83895177,103.19,103.12,8.736]
[1770034934981,44.10795177,103.19,103.12,8.736]
[1770034935579,44.10795177,103.19,103.12,51.4068906]
[1770034935778,44.10795177,103.19,103.13,42.6708906]
[1770034937285,44.10795177,103.19,103.14,8.735]
[1770034937488,44.10795177,103.19,103.13,178.5637906]
[1770034937885,44.10795177,103.19,103.14,8.7343]
[1770034938183,8.7293,103.21,103.14,52.23467981]
[1770034938491,44.10795177,103.22,103.15,43.50037981]
[1770034938989,52.83645177,103.22,103.15,52.23467981]
[1770034939184,44.10795177,103.22,103.15,43.50037981]
[1770034940287,44.10795177,103.22,103.16,8.7333]
[1770034941487,44.10795177,103.19,103.11,61.2762198]
[1770034941684,44.10795177,103.19,103.11,43.50037981]
[1770034941995,44.10795177,103.19,103.12,8.7366]
[1770034942287,44.10795177,103.19,103.13,179.39237981]
[1770034942594,375.34637897,103.22,103.15,43.50037981]
[1770034942595,44.10795177,103.21,103.15,43.50037981]
[1770034943389,44.10795177,103.21,103.16,8.7334]
[1770034944789,44.10795177,103.21,103.17,8.7325]
[1770034945182,44.10795177,103.21,103.15,52.23377981]
[1770034945381,44.10795177,103.21,103.15,43.50037981]
[1770034946390,47.1149834,103.21,103.15,52.23447981]
[1770034946590,47.1149834,103.21,103.15,43.50037981]
[1770034946787,44.10795177,103.21,103.15,43.50037981]
[1770034947388,44.10795177,103.21,103.16,8.7331]
[1770034947989,44.10795177,103.24,103.17,8.7326]
[1770034948189,3.00703163,103.21,103.16,42.98766434]
[1770034948796,47.1149834,103.21,103.16,8.7333]
[1770034948997,47.1149834,103.21,103.14,43.007987]
[1770034949195,47.1149834,103.2,103.14,43.007987]
[1770034949399,47.1149834,103.19,103.13,8.7352]
[1770034949702,47.1149834,103.18,103.12,429.727987]
[1770034949996,44.10795177,103.18,103.14,8.7351]
[1770034950197,47.1149834,103.2,103.14,43.00724827]
[1770034950594,44.10795177,103.2,103.15,8.7342]
[1770034950801,47.1149834,103.2,103.15,8.7342]
[1770034951298,47.1149834,103.2,103.14,51.74234827]
[1770034951497,3.00703163,103.19,103.14,51.74234827]
[1770034951700,47.1149834,103.17,103.12,42.18120071]
[1770034953098,47.1149834,103.17,103.12,50.91750071]
[1770034953603,47.1149834,103.17,103.12,42.18120071]
[1770034954401,47.1149834,103.17,103.13,8.736]
[1770034954904,44.10795177,103.17,103.13,8.736]
[1770034956104,47.1149834,103.17,103.13,8.736]
[1770034956805,44.10795177,103.17,103.13,8.736]
[1770034957307,3.00703163,103.18,103.13,52.23637981]
[1770034957507,3.00703163,103.19,103.14,8.735]
[1770034958004,44.10795177,103.2,103.15,8.7341]
[1770034958300,3.00703163,103.18,103.13,43.50037981]
[1770034958604,41.39771809,103.19,103.13,43.50037981]
[1770034959006,48.91940241,103.21,103.13,43.50037981]
[1770034959409,48.91940241,103.21,103.13,61.2762198]
[1770034959608,41.39771809,103.21,103.15,8.7342]
[1770034959808,50.12701809,103.21,103.15,8.7342]
[1770034962410,57.64797688,103.21,103.15,8.7342]
[1770034962610,41.39771809,103.2,103.15,8.7342]
[1770034963210,50.12801809,103.2,103.14,17.77583999]
[1770034963707,50.12801809,103.2,103.13,61.2762198]
[1770034963911,50.12801809,103.2,103.14,17.77583999]
[1770034964710,41.39771809,103.2,103.14,60.64312023]
[1770034965406,41.39771809,103.2,103.16,8.7334]
[1770034966512,41.39771809,103.2,103.16,26.50923999]
[1770034967406,16.24915879,103.23,103.16,26.50923999]
[1770034967604,41.39771809,103.22,103.16,26.50923999]
[1770034967802,50.12611809,103.22,103.16,26.50923999]
[1770034968617,50.12611809,103.22,103.16,8.7334]
[1770034968814,50.12611809,103.22,103.16,26.50923999]
[1770034970415,50.12611809,103.22,103.15,26.51003999]
[1770034971423,50.12611809,103.22,103.16,8.7333]
[1770034971617,50.12611809,103.22,103.16,26.50913999]
[1770034972014,41.39771809,103.22,103.16,61.18174586]
[1770034972219,41.39771809,103.22,103.17,26.50763999]
[1770034974414,41.39771809,103.22,103.18,26.50753999]
[1770034975319,42.39291448,103.24,103.19,8.7307]
[1770034975523,42.39291448,103.24,103.2,17.77583999]
[1770034975915,42.39291448,103.26,103.2,69.36871771]
[1770034977122,42.39291448,103.26,103.2,51.59287772]
[1770034977327,42.39291448,103.26,103.2,69.36871771]
[1770034977725,42.39291448,103.26,103.21,43.29364648]
[1770034977928,42.39291448,103.26,103.21,61.06948647]
[1770034978128,42.39291448,103.26,103.21,43.29364648]
[1770034978529,45.39718986,103.26,103.21,43.29364648]
[1770034980520,3.00427538,103.27,103.22,60.94066255]
[1770034980722,3.00427538,103.29,103.23,43.10821431]
[1770034980926,45.39718986,103.3,103.25,8.7256]
[1770034981522,147.56,103.33,103.24,43.10821431]
[1770034981523,45.39718986,103.29,103.24,43.10821431]
[1770034981721,3.00427538,103.28,103.23,17.77583999]
[1770034981927,45.39718986,103.27,103.22,43.10771492]
[1770034982127,45.39718986,103.26,103.2,60.88355491]
[1770034982328,42.39291448,103.29,103.23,43.10771492]
[1770034982527,45.39718986,103.29,103.23,43.10771492]
[1770034982728,45.39718986,103.29,103.23,60.88355491]
[1770034983024,3.00427538,103.28,103.23,60.88355491]
[1770034983221,3.00427538,103.28,103.23,43.10771492]
[1770034983426,3.00427538,103.28,103.23,51.83511492]
[1770034984431,42.39291448,103.31,103.24,50.05013125]
[1770034984630,45.39718986,103.3,103.24,41.32363125]
[1770034985120,3.00427538,103.31,103.25,50.94998085]
[1770034985324,45.39718986,103.31,103.25,50.94998085]
[1770034986336,45.39718986,103.31,103.26,8.7249]
[1770034987329,45.39718986,103.31,103.25,42.22418085]
[1770034987722,41.44802666,103.33,103.26,42.0294002]
[1770034987926,3.00427538,103.32,103.27,50.7534002]
[1770034988122,44.45230204,103.33,103.27,50.7534002]
[1770034988328,41.44802666,103.35,103.28,50.7525002]
[1770034988522,41.44802666,103.38,103.29,42.0294002]
[1770034988731,44.45230204,103.36,103.29,45.03367558]
[1770034989027,44.45230204,103.36,103.29,42.0294002]
[1770034989235,44.45230204,103.36,103.27,135.7004]
[1770034989236,44.45230204,103.33,103.27,41.97932045]
[1770034989428,44.45230204,103.32,103.25,41.97932045]
[1770034990329,3.00427538,103.31,103.26,8.7249]
[1770034991036,44.45230204,103.3,103.24,8.7259]
[1770034991237,44.45230204,103.27,103.2,41.12576297]
[1770034991532,41.44802666,103.27,103.21,8.7287]
[1770034991836,44.45230204,103.27,103.21,49.85403218]
[1770034992337,41.44802666,103.29,103.22,41.12533218]
[1770034992532,41.44802666,103.29,103.23,41.12533218]
[1770034993036,41.44802666,103.29,103.24,8.7264]
[1770034993337,41.44802666,103.29,103.23,41.12533218]
[1770034994632,41.44802666,103.29,103.22,8.7283]
[1770034994835,41.44802666,103.27,103.21,37.30744151]
[1770034995038,41.44802666,103.27,103.2,8.7294]
[1770034995635,41.44802666,103.27,103.21,8.7291]
[1770034996835,41.44802666,103.27,103.2,38.18800877]
[1770034998331,41.44802666,103.27,103.21,8.7289]
[1770035001146,50.17222666,103.27,103.2,38.18800877]
[1770035001935,41.44802666,103.27,103.2,38.18800877]
[1770035003445,41.44802666,103.27,103.21,8.7292]
[1770035004046,48.95564214,103.27,103.19,8.7301]
[1770035004442,41.44802666,103.25,103.19,8.7301]
[1770035004642,41.44802666,103.25,103.2,8.7298]
[1770035004842,41.44802666,103.25,103.19,174.19325504]
[1770035005038,41.44802666,103.25,103.19,38.38175504]
[1770035005744,41.44802666,103.25,103.2,8.73]
[1770035010043,16.23181548,103.27,103.21,8.729]
[1770035010044,48.95564214,103.27,103.21,8.729]
[1770035010248,41.44802666,103.27,103.21,8.729]
[1770035013548,50.17232666,103.27,103.21,8.729]
[1770035014144,41.44802666,103.26,103.19,8.7308]
[1770035014347,3.0062449,103.22,103.19,8.7308]
[1770035015842,44.45427156,103.22,103.17,26.50833999]
[1770035016044,44.45427156,103.21,103.17,8.7325]
[1770035016247,44.45427156,103.21,103.15,17.77583999]
[1770035016442,41.44802666,103.2,103.15,8.734]
[1770035016644,41.44802666,103.2,103.13,17.77583999]
[1770035016841,48.9682459,103.2,103.13,17.77583999]
[1770035017042,48.9682459,103.2,103.13,192.32193023]
[1770035017248,41.44802666,103.22,103.15,192.29063023]
[1770035018052,41.44802666,103.22,103.15,56.42923023]
[1770035018750,48.9682459,103.22,103.15,38.65339024]
[1770035020348,41.44802666,103.22,103.16,8.733]
[1770035022946,44.17052242,103.24,103.18,39.24253891]
[1770035023152,44.17052242,103.24,103.16,192.8655789]
[1770035023348,44.17052242,103.24,103.18,8.7309]
[1770035024650,51.68825006,103.24,103.16,8.7329]
[1770035025044,51.68825006,103.24,103.14,57.01809048]
[1770035025045,44.17052242,103.21,103.14,57.01809048]
[1770035025447,44.17052242,103.21,103.15,38.79871366]
[1770035026453,44.17052242,103.21,103.16,8.7331]
[1770035027757,8.7276,103.23,103.16,8.7331]
[1770035027758,52.89812242,103.23,103.16,47.6799228]
[1770035028360,44.17052242,103.23,103.17,8.7325]
[1770035028957,44.17052242,103.23,103.18,8.7317]
[1770035031662,44.17052242,103.23,103.19,8.7307]
[1770035032065,48.98742047,103.26,103.19,47.72413315]